Cogmind - Beta 14 *** ADVENTURER MODE // 2024.09.11 @ 22:24:27 Player: WimP_Lo Result: Self-destructed Performance ------------- Evolutions (2) 1000 Regions Visited (6) 1200 Robots Destroyed (30) 150 Value Destroyed (669) 669 Prototype IDs (28) 560 Alien Tech Used (0) 0 Bonus (300) 300 TOTAL SCORE: 3879 Bonus ------- Aligned with FarCom 300 Cogmind --------- Core Integrity 142/550 Matter 127/300 Energy 99/100 System Corruption 0% Temperature Cool (0) Movement Core (50) Location -8/Storage Parts ------- > --- POWER (2) -------- (None) > --- PROPULSION (2) --- (None) > --- UTILITY (5) ------ Signal Interpreter Advanced Targeting Computer Target Analyzer > --- WEAPON (2) ------- Particle Gun > --- INVENTORY (5) ---- Compact Wheel Hover Unit Heat Sink Small Matter Pod (0) Peak State ------------ > --- POWER ------------ Light Ion Engine Light Ion Engine > --- PROPULSION ------- Airjet Airjet > --- UTILITY ---------- Small Storage Unit Signal Interpreter Improved Light Armor Plating > --- WEAPON ----------- Light Assault Rifle Enhanced Autogun > --- INVENTORY -------- Aluminum Leg Compact Wheel Hover Unit Hover Unit Heat Sink Small Matter Pod Mini Grenade Launcher Improved Grenade Launcher [Rating: 19] Favorites ----------- Power Light Ion Engine Engine Light Ion Engine Propulsion Aluminum Leg Leg Aluminum Leg Wheel Compact Wheel Hover Unit Hover Unit Utility Small Storage Unit Storage Small Storage Unit Processor Signal Interpreter Protection Improved Light Armor Plating Weapon Light Assault Rifle Energy Gun Small Laser Ballistic Gun Light Assault Rifle Launcher Mini Grenade Launcher Build | -11 -10 -10 -10 -9 -8 -8 ------- Run | Yrd Mat Min Exi Min Mat Sto Slots Evolved 4 | . . . . . 4 . Power 1 | . . . . . 1 . Propulsion . | . . . . . . . Utility 3 | . . . . . 3 . Weapon . | . . . . . . . Parts Attached 46 | 4 12 2 . . 23 5 Power 7 | 1 2 . . . 4 . Engine 7 | 1 2 . . . 4 . Core . | . . . . . . . Reactor . | . . . . . . . Propulsion 19 | 3 4 2 . . 9 1 Treads . | . . . . . . . Leg 8 | 2 2 . . . 4 . Wheel 1 | 1 . . . . . . Hover 10 | . 2 2 . . 5 1 Flight . | . . . . . . . Utility 6 | . 2 . . . 2 2 Device . | . . . . . . . Storage 2 | . 1 . . . 1 . Processor 3 | . 1 . . . . 2 Hackware . | . . . . . . . Protection 1 | . . . . . 1 . Artifact . | . . . . . . . Weapon 14 | . 4 . . . 8 2 Energy Gun 2 | . . . . . 1 1 Energy Cannon . | . . . . . . . Ballistic Gun 8 | . 4 . . . 4 . Ballistic Cannon . | . . . . . . . Launcher 4 | . . . . . 3 1 Special Weapon . | . . . . . . . Impact Weapon . | . . . . . . . Slashing Weapon . | . . . . . . . Piercing Weapon . | . . . . . . . Special Melee Weapon . | . . . . . . . Unidentified Prototypes 1 | . . . . . 1 . Parts Lost 8 | . . . . . 1 7 Power 2 | . . . . . . 2 Propulsion 3 | . . . . . 1 2 Utility 1 | . . . . . . 1 Weapon 2 | . . . . . . 2 Highest Loss Streak 4 | . . . . . 1 4 To Critical Strikes . | . . . . . . . Average Slot Usage (%) 87 | . 96 100 100 100 77 60 Engine 13 | . 14 14 14 14 17 6 Leg 10 | . 19 9 . . 10 . Hover 11 | . 8 18 28 28 7 6 Storage 12 | . 13 14 14 14 11 8 Processor 13 | . 11 14 14 14 9 26 Protection 1 | . . . . . 6 . Ballistic Gun 20 | . 28 28 28 28 12 6 Launcher 1 | . . . . . 2 4 Peak Build Rating 19 | 3 7 7 7 7 19 17 Average Rating 9 | 1 6 6 7 7 13 11 On Entrance 5 | . 3 7 7 7 7 8 Naked Turns . | . . . . . . . Heaviest Build 18 | 5 14 11 11 11 18 13 Greatest Support 20 | 16 20 20 12 12 20 14 Greatest Overweight (x) 2 | 1 . . . . 2 2 Average Overweight (x) . | . . . . . . . Largest Inventory Capacity 8 | 5 8 8 8 8 8 8 Average Capacity 7 | 5 7 8 8 8 8 7 Most Carried 8 | 5 8 8 8 8 8 7 Average Carried 7 | 3 7 7 8 8 7 4 Final Capacity 8 | 5 8 8 8 8 8 5 Final Carried 8 | 5 8 8 8 8 7 4 Class Distribution -------------------- 54% | Scavenger-Mutant 45% | Mutant Dominant Class ---------------- Mutant | -10/Materials Scavenger-Mutant | -10/Mines Scavenger-Mutant | -10/Exiles Scavenger-Mutant | -9/Mines Scavenger-Mutant | -8/Materials Mutant | -8/Storage Resources | -11 -10 -10 -10 -9 -8 -8 ----------- Run | Yrd Mat Min Exi Min Mat Sto Matter Collected 913 | 240 304 . . . 204 165 Remotely . | . . . . . . . Salvage Created 795 | . 257 . . . 324 214 Parts 55 | . 24 . . . 21 10 Haulers Intercepted . | . . . . . . . Recyclers Shooed 1 | . . . . . . 1 Parts Field Recycled . | . . . . . . . Retrieved Matter . | . . . . . . . Parts Self-Destructed . | . . . . . . . Prevented . | . . . . . . . Kills | -11 -10 -10 -10 -9 -8 -8 ------- Run | Yrd Mat Min Exi Min Mat Sto Combat Hostiles Destroyed 23 | . 11 . . . 8 4 Guns 17 | . 11 . . . 5 1 AOE 6 | . . . . . 3 3 Classes Destroyed 6 | . 3 . . . 2 1 Builder 1 | . . . . . . 1 Recycler 3 | . . . . . 1 2 Watcher 3 | . 3 . . . . . Swarmer 13 | . 10 . . . 3 . Grunt 4 | . 1 . . . . 3 Sentry 6 | . . . . . 5 1 Best Kill Streak 4 | . 4 . . . 3 3 Combat Bots Only 3 | . 3 . . . 3 3 Max Kills in Single Turn 2 | . 1 . . . 2 1 Gunslinging . | . . . . . . . Exploded 1 | . . . . . 1 1 Melee . | . . . . . . . Uniques/NPCs Destroyed . | . . . . . . . Combat | -11 -10 -10 -10 -9 -8 -8 -------- Run | Yrd Mat Min Exi Min Mat Sto Hostile Shots Fired 123 | . 37 . . . 48 38 Missed 37 | . 14 . . . 16 7 Damage Taken 1161 | . 134 . . . 354 673 Core 442 | . 34 . . . 51 357 Absorbed by Shields . | . . . . . . . Ignored by Resistances 337 | . 47 . . . 103 187 Core Remaining (%) 93 | 100 . . . 86 . . Volleys Fired 82 | . 23 . . . 32 27 Largest 2 | . 2 . . . 2 2 Hottest 65 | . 40 . . . 60 65 Shots Fired 134 | . 46 . . . 50 38 Gun 107 | . 46 . . . 40 21 Cannon . | . . . . . . . Launcher 27 | . . . . . 10 17 Special . | . . . . . . . Kinetic 97 | . 46 . . . 34 17 Thermal 10 | . . . . . 6 4 Explosive 27 | . . . . . 10 17 Electromagnetic . | . . . . . . . Robot Hit Streak 22 | . 20 . . . 22 19 Robot Miss Streak 5 | . 1 . . . 5 1 Penetration Max . | . . . . . . . Secondary Targets 1 | . 1 . . . . . Max Gunslinging Chain 1 | . 1 . . . . . Shots Hit Robots 103 | . 37 . . . 34 32 Core Hits 58 | . 21 . . . 19 18 Critical Kills . | . . . . . . . Critical Parts Destroyed . | . . . . . . . Critical Strikes . | . . . . . . . Melee Attacks . | . . . . . . . Impact . | . . . . . . . Slashing . | . . . . . . . Piercing . | . . . . . . . Sneak Attacks . | . . . . . . . Combat Hostiles . | . . . . . . . Follow-up Attacks . | . . . . . . . Damage Inflicted 1875 | . 414 . . . 496 965 Guns 820 | . 414 . . . 244 162 Cannons . | . . . . . . . Explosions 1055 | . . . . . 252 803 Melee . | . . . . . . . Ramming . | . . . . . . . Kinetic 699 | . 414 . . . 187 98 Thermal 121 | . . . . . 57 64 Explosive 1026 | . . . . . 223 803 Electromagnetic 29 | . . . . . 29 . Impact . | . . . . . . . Slashing . | . . . . . . . Piercing . | . . . . . . . Highest Corruption . | . . . . . . . Average Corruption . | . . . . . . . Corruption Purged . | . . . . . . . Corruption Blocked . | . . . . . . . Overload Shots . | . . . . . . . Overflow Damage 25 | . . . . . . 25 Projectiles . | . . . . . . . Explosions 25 | . . . . . . 25 Melee . | . . . . . . . Knockbacks . | . . . . . . . Impact . | . . . . . . . Kinetic . | . . . . . . . Secondary . | . . . . . . . Self-Inflicted Damage 303 | . . . . . 34 269 Shots 13 | . . . . . 2 11 Rammed . | . . . . . . . Targets Rammed . | . . . . . . . Kicked . | . . . . . . . Crushed . | . . . . . . . Highest Temperature 67 | . 8 . . . 67 39 Average Temperature 13 | . 3 . . . 16 14 Received Heat Transfer 390 | . 12 . . . 117 261 Siege Activations . | . . . . . . . Robots Corrupted . | . . . . . . . Combat Hostiles . | . . . . . . . Parts Fried . | . . . . . . . Impact Corruptions . | . . . . . . . Robots Melted . | . . . . . . . Combat Hostiles . | . . . . . . . Parts Melted . | . . . . . . . Heat Transferred 273 | . . . . . 125 148 Parts Sabotaged . | . . . . . . . Parts Stolen . | . . . . . . . Parts Stripped . | . . . . . . . Power Chain Reactions . | . . . . . . . Alert | -11 -10 -10 -10 -9 -8 -8 ------- Run | Yrd Mat Min Exi Min Mat Sto Peak Influence 357 | . 294 . . . 357 282 Initial 128 | . . . . . . 128 Average 123 | . 141 . . . 113 202 Maximum Alert Level 1 | . 1 . . . 1 1 Low Security (%) 82 | 100 87 100 . 100 88 38 Level 1 17 | . 12 . . . 11 61 Level 2 . | . . . . . . . Level 3 . | . . . . . . . Level 4 . | . . . . . . . Level 5 . | . . . . . . . High Security . | . . . . . . . Max Security . | . . . . . . . Squads Dispatched 3 | . 1 . . . . 2 Investigation 1 | . 1 . . . . . Extermination . | . . . . . . . Reinforcement 1 | . . . . . . 1 Assault . | . . . . . . . Garrison 1 | . . . . . . 1 Intercept . | . . . . . . . Searches Triggered . | . . . . . . . Construction Impeded . | . . . . . . . Haulers Reinforced . | . . . . . . . Active Scanning Responses . | . . . . . . . Cargo Convoy Interrupts . | . . . . . . . Stealth | -11 -10 -10 -10 -9 -8 -8 --------- Run | Yrd Mat Min Exi Min Mat Sto Distress Signals 5 | . 2 . . . 2 1 Communications Jammed . | . . . . . . . Distress Signals . | . . . . . . . Times Spotted 54 | . 22 . . 7 18 7 Peak Tracking Total 10 | . 4 . . 10 6 4 Tactical Retreats 5 | . 2 . . 1 2 . Traps | -11 -10 -10 -10 -9 -8 -8 ------- Run | Yrd Mat Min Exi Min Mat Sto Traps Triggered 4 | . 3 . . . 1 . Indirectly . | . . . . . . . Trap Hack Attempts . | . . . . . . . Triggered . | . . . . . . . Disarmed . | . . . . . . . Reprogrammed . | . . . . . . . Reused . | . . . . . . . Traps Extracted . | . . . . . . . Installed . | . . . . . . . Triggered . | . . . . . . . Machines | -11 -10 -10 -10 -9 -8 -8 ---------- Run | Yrd Mat Min Exi Min Mat Sto Machines Disabled 2 | . . . . . 1 1 Max in Single Turn 1 | . . . . . 1 1 Garrison Access 2 | . . . . . 1 1 Machines Repaired . | . . . . . . . Machines Dismantled . | . . . . . . . Machines Sabotaged . | . . . . . . . Overloaded Fab Kills . | . . . . . . . Hacking | -11 -10 -10 -10 -9 -8 -8 --------- Run | Yrd Mat Min Exi Min Mat Sto Machines Accessed 13 | . 5 . 2 . 5 1 Terminals 6 | . 3 . . . 3 . Fabricators . | . . . . . . . Repair Stations . | . . . . . . . Recycling Units 3 | . 2 . . . 1 . Scanalyzers . | . . . . . . . Garrison Access 2 | . . . . . 1 1 Total Hacks 35 | . 15 . 2 . 16 2 Successful 24 | . 9 . 2 . 12 1 Failed 11 | . 6 . . . 4 1 Catastrophic . | . . . . . . . Database Lockouts . | . . . . . . . Manual 1 | . . . 1 . . . Terminals 22 | . 11 . . . 11 . Fabricators . | . . . . . . . Repair Stations . | . . . . . . . Recycling Units 8 | . 4 . . . 4 . Scanalyzers . | . . . . . . . Garrison Access 3 | . . . . . 1 2 Terminal Hacks 15 | . 6 . 2 . 7 . Record 1 | . . . 1 . . . Robot Analysis 1 | . 1 . . . . . Prototype ID Bank 2 | . 1 . . . 1 . Emergency Access Points 2 | . 1 . . . 1 . Locate Traps 4 | . 1 . . . 3 . Dispatch Records 1 | . 1 . . . . . Investigation Status 1 | . . . . . 1 . Reinforcement Status 1 | . 1 . . . . . Zone Layout 1 | . . . . . 1 . Derelict Proto ID Bank 1 | . . . 1 . . . Fabricator Hacks . | . . . . . . . Repair Station Hacks . | . . . . . . . Recycling Unit Hacks 7 | . 3 . . . 4 . Process 1 | . . . . . 1 . Report Inventory 3 | . 2 . . . 1 . Retrieve Matter 2 | . . . . . 2 . Retrieve Components 1 | . 1 . . . . . Scanalyzer . | . . . . . . . Garrison Access Hacks 2 | . . . . . 1 1 Seal Access 2 | . . . . . 1 1 Unauthorized Hacks . | . . . . . . . Terminals . | . . . . . . . Fabricators . | . . . . . . . Repair Stations . | . . . . . . . Recycling Units . | . . . . . . . Scanalyzers . | . . . . . . . Garrison Access . | . . . . . . . Data Cores Recovered . | . . . . . . . Used . | . . . . . . . Hacking Detections 9 | . 4 . . . 4 1 Full Trace Events 1 | . 1 . . . . . Feedback Events . | . . . . . . . Feedback Blocked . | . . . . . . . Robot Schematics Acquired . | . . . . . . . Robots Built . | . . . . . . . Authchips . | . . . . . . . Time . | . . . . . . . Total Robot Build Rating . | . . . . . . . Part Schematics Acquired . | . . . . . . . Parts Built . | . . . . . . . Authchips . | . . . . . . . Time . | . . . . . . . Total Part Build Rating . | . . . . . . . Parts Repaired . | . . . . . . . Time . | . . . . . . . Parts Recycled . | . . . . . . . Recycled Matter 33 | . . . . . 33 . Retrieved Matter 33 | . . . . . 33 . Retrieved Components 3 | . 3 . . . . . Parts Scanalyzed . | . . . . . . . Part Schematics Acquired . | . . . . . . . Parts Damaged . | . . . . . . . Bothacking | -11 -10 -10 -10 -9 -8 -8 ------------ Run | Yrd Mat Min Exi Min Mat Sto Used RIF Installer . | . . . . . . . Robots Hacked . | . . . . . . . Non-combat . | . . . . . . . Combat . | . . . . . . . Robot Hacks Applied . | . . . . . . . Relay Couplers Released . | . . . . . . . Fabnet Peak Effective % . | . . . . . . . Robots Rewired . | . . . . . . . Allies Hacked . | . . . . . . . Hacks Repelled . | . . . . . . . Allies | -11 -10 -10 -10 -9 -8 -8 -------- Run | Yrd Mat Min Exi Min Mat Sto Total Allies 2 | . . . . 2 . . Largest Group 2 | . . . . 2 . . Highest-Rated Group 36 | . . . . 36 . . Highest-Rated Ally 31 | . . . . 31 . . Total Orders . | . . . . . . . Ally Attacks . | . . . . . . . Total Damage . | . . . . . . . Kills . | . . . . . . . Allies Corrupted . | . . . . . . . Allies Melted 1 | . . . . 1 . . Intel | -11 -10 -10 -10 -9 -8 -8 ------- Run | Yrd Mat Min Exi Min Mat Sto Robot Analysis Total 1 | . 1 . . . . . Derelict Logs Recovered 1 | . . . . 1 . . Drone Launches . | . . . . . . . Drone Recoveries . | . . . . . . . Exploration | -11 -10 -10 -10 -9 -8 -8 ------------- Run | Yrd Mat Min Exi Min Mat Sto Turns Passed 2225 | 44 863 27 231 181 601 278 Spaces Moved 2262 | 37 794 37 411 302 509 172 Core 127 | 27 . . . . . 100 Treads . | . . . . . . . Legs 687 | . 446 2 . . 239 . Wheels 10 | 10 . . . . . . Hover 1438 | . 348 35 411 302 270 72 Flight . | . . . . . . . Fastest Speed 50 | 50 56 56 56 56 56 50 Average Speed 80 | 85 91 59 56 56 90 99 Slowest Speed 180 | 100 120 120 56 56 180 150 Overloaded Moves . | . . . . . . . Propulsion Burnouts . | . . . . . . . Robots Hopped . | . . . . . . . Cave-ins Triggered . | . . . . . . . Exploration Rate (%) 42 | 4 79 4 71 77 39 24 Regions Visited 6 Branch Regions 4 Pre-discovered Areas . | . . . . . . . Known Exits Taken 5 | . 1 1 1 1 1 . Unknown Exits Taken 1 | 1 . . . . . . Scrap Searched 1 | . . . . 1 . . Spaces Dug . | . . . . . . . Terrain Destroyed 126 | . . . . . 41 85 Melee . | . . . . . . . Projectile . | . . . . . . . AOE 126 | . . . . . 41 85 Terrain Rammed . | . . . . . . . Walls Destroyed . | . . . . . . . Machines Disabled . | . . . . . . . Actions | -11 -10 -10 -10 -9 -8 -8 --------- Run | Yrd Mat Min Exi Min Mat Sto Total 2554 | 49 885 43 411 313 609 244 Wait 101 | . 35 . . 12 18 36 Move 2256 | 36 793 36 410 301 508 172 Hop . | . . . . . . . Pick Up 38 | 8 14 2 . . 11 3 Fast Attach 3 | 1 . . . . 2 . Attach 24 | 3 5 2 . . 9 5 Detach 6 | . . 1 . . 5 . Swap 19 | . 7 . . . 12 . Drop 24 | 1 8 2 . . 12 1 Fire 82 | . 23 . . . 32 27 Melee . | . . . . . . . Ram . | . . . . . . . Kick . | . . . . . . . Crush . | . . . . . . . Escape Stasis . | . . . . . . . Rewire 1 | . . . 1 . . . Trap . | . . . . . . . Miscellaneous . | . . . . . . . Route ------- -11/Scrapyard -10/Materials (discovered 3 exits: *Mat x2 / *Min) -10/Mines -10/Exiles -9/Mines (discovered 2 exits: *Mat x2) -8/Materials (discovered 3 exits: [Fac] / *Sto x2) -8/Storage History --------- Turn | Location | Event 12 | -11/Scrapyard | Discovered new exit (range 15) 45 | -11/Scrapyard | Entered Materials 269 | -10/Materials | Discovered new exit (range 11) 281 | -10/Materials | Identified exit to Mines 440 | -10/Materials | Discovered new exit (range 16) 480 | -10/Materials | Identified exit to Materials 753 | -10/Materials | Build established: Mutant 833 | -10/Materials | Discovered exit to Materials (range 12) 908 | -10/Materials | Entered Mines 933 | -10/Mines | Deemed a non-threat by the Exiles lab entrance 933 | -10/Mines | Discovered new exit (range 5) 935 | -10/Mines | Identified exit to Exiles 935 | -10/Mines | Entered Exiles 951 | -10/Exiles | Met 8R-AWN 958 | -10/Exiles | Met EX-HEX 996 | -10/Exiles | Met EX-DEC 1020 | -10/Exiles | Discovered new exit (range 15) 1028 | -10/Exiles | Identified exit to Mines 1081 | -10/Exiles | Met EX-BIN 1088 | -10/Exiles | Aligned with FarCom system 1088 | -10/Exiles | Given EX-Vault access code 1102 | -10/Exiles | Opened EX-Vault 1116 | -10/Exiles | Warned to stay clear of 0b10 Research branches 1126 | -10/Exiles | Exiles lab attacked by MAIN.C 1166 | -10/Exiles | Entered Mines 1220 | -9/Mines | Build established: Scavenger-Mutant 1240 | -9/Mines | Assembled infested the area 1245 | -9/Mines | Assisted by a Guerilla fighting off Assembled 1304 | -9/Mines | Learned Materials trap positions 1323 | -9/Mines | Discovered new exit (range 3) 1325 | -9/Mines | Identified exit to Materials 1338 | -9/Mines | Discovered exit to Materials (range 10) 1347 | -9/Mines | Entered Materials 1347 | -8/Materials | Evolved 4 slots: Power x1, Utility x3 1348 | -8/Materials | Loaded intel: 26 trap records 1762 | -8/Materials | Discovered new exit (range 17) 1922 | -8/Materials | Discovered new exit (range 16) 1945 | -8/Materials | Discovered new exit (range 13) 1946 | -8/Materials | Identified exit to Storage 1948 | -8/Materials | Entered Storage 2038 | -8/Storage | Garrison activated, responded to threat 2083 | -8/Storage | Lost 4 parts (2p2n) 2142 | -8/Storage | Core integrity fell below 50% 2226 | -8/Storage | Self-destructed Last Messages --------------- 02171_ The unstable cave ceiling collapses. 02173_ R-06 Scavenger collects Tractor Beam. 02173_ U-05 Engineer lays Concrete. 02174_ ALERT: Hostiles spotted, dispatching reinforcements to Terminal S008. 02174_ U-05 Engineer builds a Wall. 02175_ Destroyed Imp. Sensor Array. 02175_ K-01 Serf collects debris. 02179_ The unstable cave ceiling collapses. 02179_ K-01 Serf collects debris. 02180_ The unstable cave ceiling collapses. 02180_ U-05 Engineer builds a Wall. 02182_ K-01 Serf collects debris. 02199_ U-05 Engineer builds a Wall. 02203_ U-05 Engineer lays Concrete. 02204_ K-01 Serf collects debris. 02207_ Acquired 78 matter. 02210_ R-06 Scavenger collects Lgt. Ion Engine. 02218_ Sml. Storage Unit destroyed. 02220_ Connecting with Door Terminal... Map ----- +----------------------------------------------------+ | ??????????????????????????????# ### #?????? | | ??????????????????????????????# # #?????? | | ??????????????????????????????# + #?????? | | ??????????????????????????????# # #?????? | | ??????????????????????????????# # #?????? | | ??????????????????????????????# # #?????? | | ??????????????????????????????# # #?????? | | ??????????????????????????????# ## #####?????? | | ???????????????????###+#?###### #?????????? | | ??????????????????## ?# !# ## #?????????? | | ??????????????????? Y ?# # # #####?????? | | ??????????????????? ?# # # #?????? | | ???????????????????? ?+ # # #?????? | | ???????????????????? ?# # # "" #?????? | | ????????????????????# w## ! # # """ ####??? | | ????????????????????# Y ## # / " """#??? | | ????????????????????# ## # G"#??? | | ????????????????????# ## # """#??? | | ????????????????????# #### ## # ###??? | | ????????????????????# #?# # # #????? | | ??????????????????g?# ####### ###########????? | | ???????????????????## ### #?????? | | ???????????????????+ # #?????? | | ???????????????????## ### # ###?????? | | ????????????????????###+##### ######???????? | | ?????????????Y????????# @###########????????????? | | ??????????????????????# T#?????????????????????? | | ??????????????????????#" "##?????????????????????? | | ??????????????????????#! !#??????????????????????? | | ??????????????????????#! !#??????????????????????? | | ??????????????????????#! !#??????????????????????? | | ??????????????????????#! !#??????????????????????? | | ??????????????????????#####??????????????????????? | | ?????????????????????????????????????????????????? | | ?????????????????????????????????????????????????? | | ?????????????????????????????????????????????????? | | ?????????????????????????????????????????????????? | | ???????????????????Y?????????????????????????????? | | ?????????????????????????????????????????????????? | | ?????????????????????????????????????????????????? | | ?????????????????????????????????????????????????? | | ?????????????????????????????????????????????????? | | ?????????????????????????????????????????????????? | | ?????????????????????????????????????????????????? | | ?????????????????????????????????????????????????? | | ?????????????????????????????????????????????????? | | ?????????????????????????????????????????????????? | | ?????????????????????????????????????????????????? | | ?????????????????????????????????????????????????? | | | +----------------------------------------------------+ Best States ------------- Heat Dissipation 31 Energy Generation 15 Energy Capacity 250 Matter Stores 300 Matter Capacity 350 Sight Range 16 Terrain Scan Density 10 Armor Coverage 150 Resistance: KI 20 Resistance: TH 20 Resistance: EX 20 Resistance: EM 20 Resistance: I 20 Resistance: S 20 Resistance: P 20 Evasion (%) 55 Targeting Accuracy 8 Target Analysis 5 Offensive Hacking 10 Item Schematics ----------------- None Robot Schematics ------------------ None Fabricated ------------ Nothing Alien Tech Used ----------------- None Achievements -------------- Slippery One Challenges ------------ None Game ------ Seed RestorationNovaShovel Manual? 0 Play Time 00:47:23 Cumulative 23.9 hours Start 2024.09.11 @ 21:36:43 End 2024.09.11 @ 22:24:27 Sessions 1 Manual Loads 0 Difficulty Adventurer Special Mode None Game No. 23 Rogue 2 Adventurer 21 Explorer 0 Win Type - Total 0 Types 0/0/0/0/0/0/0/0/0 Lore% 10 Gallery% 18 Achievement% 16 Wizard Run 0 Options --------- Layout 1 ASCII 0 Keyboard 0 Movement Mouse Keybinds 0 Fullscreen 1 Font 24/Smallcaps Map View 50x35 Zoom Use 0% Tactical HUD 1 Map Filters NONE Filters NONE Steam 1 RUN: 69984c12-b68d-4d1b-9f76-e39ec44b36cf